fUSD/lending_fUSD_20250223
["ID","MTS","AMOUNT","RATE_DAILY","PERIOD"]
[354204013,1740347433260,-500.0,0.00016438,2]
[354204014,1740347433270,-525.29434225,0.00016438,2]
[354204015,1740347433279,-500.0,0.00016438,2]
[354204016,1740347433289,-55.42124324,0.00016438,2]
[354204017,1740347433319,-316.5742938,0.00016338,2]
[354204018,1740347433329,-444.57875676,0.00016438,2]
[354204019,1740347433338,-1012.32,0.00016438,2]
[354204020,1740347433348,-500.0,0.00016438,2]
[354204021,1740347433359,-500.0,0.00016438,2]
[354204022,1740347433368,-500.0,0.00016438,2]
[354204023,1740347433378,-500.0,0.00016438,2]
[354204024,1740347433389,-500.0,0.00016438,2]
[354204025,1740347433399,-500.0,0.00016438,2]
[354204026,1740347433408,-500.0,0.00016438,2]
[354204027,1740347433418,-208.33440264,0.00016438,2]
[354204037,1740347437496,-197.64,0.00016428,2]
[354204038,1740347437506,-1647.03894955,0.00016438,5]
[354204039,1740347437517,-848.03516772,0.00016438,5]
[354204040,1740347437528,-7348.41992435,0.00016438,5]
[354204041,1740347437540,-420.7117,0.00016438,5]
[354204042,1740347437551,-8462.84237005,0.00016438,5]
[354204043,1740347437584,-611.26363651,0.00016438,5]
[354204044,1740347437597,-68404.66812298,0.00016438,5]
[354204045,1740347437634,-291.66559736,0.00016438,2]
[354204046,1740347437644,-633.63,0.00016438,2]
[354204047,1740347437653,-500.0,0.00016438,2]
[354204048,1740347437663,-500.0,0.00016438,2]
[354204049,1740347437672,-641.2,0.00016438,2]
[354204050,1740347437682,-666.1,0.00016438,2]
[354204051,1740347437691,-500.0,0.00016438,2]
[354204052,1740347437700,-689.82,0.00016438,2]
[354204053,1740347437710,-500.0,0.00016438,2]
[354204054,1740347437719,-1120.9,0.00016438,2]
[354204055,1740347437729,-500.0,0.00016438,2]
[354204056,1740347437738,-500.0,0.00016438,2]
[354204057,1740347437748,-735.36,0.00016438,2]
[354204058,1740347437757,-892.66,0.00016438,2]
[354204059,1740347437767,-500.0,0.00016438,2]
[354204060,1740347437776,-500.0,0.00016438,2]
[354204061,1740347437785,-801.22,0.00016438,2]
[354204062,1740347437795,-422.29761138,0.00016438,2]
[354204063,1740347437805,-500.0,0.00016438,2]
[354204064,1740347437814,-500.0,0.00016438,2]
[354204065,1740347437823,-1696.88,0.00016438,2]
[354204067,1740347437833,-1064.14,0.00016438,2]
[354204069,1740347437842,-500.0,0.00016438,2]
[354204071,1740347437852,-585.17324596,0.00016438,2]
[354204073,1740347437861,-500.0,0.00016438,2]
[354204075,1740347437871,-500.0,0.00016438,2]
[354204077,1740347437880,-500.0,0.00016438,2]
[354204079,1740347437890,-500.0,0.00016438,2]
[354204081,1740347437900,-500.0,0.00016438,2]
[354204083,1740347437909,-500.0,0.00016438,2]
[354204085,1740347437919,-500.0,0.00016438,2]
[354204087,1740347437928,-500.0,0.00016438,2]
[354204090,1740347437938,-500.0,0.00016438,2]
[354204093,1740347437949,-500.0,0.00016438,2]
[354204096,1740347437958,-500.0,0.00016438,2]
[354204099,1740347437968,-500.0,0.00016438,2]
[354204102,1740347437977,-500.0,0.00016438,2]
[354204105,1740347437986,-1066.66,0.00016438,2]
[354204108,1740347437995,-500.0,0.00016438,2]
[354204111,1740347438004,-1030.43,0.00016438,2]
[354204114,1740347438013,-500.0,0.00016438,2]
[354204117,1740347438022,-362.22036347,0.00016438,2]
[354204120,1740347438032,-694.41,0.00016438,2]
[354204123,1740347438041,-1068.47,0.00016438,2]
[354204126,1740347438051,-500.0,0.00016438,2]
[354204129,1740347438060,-500.0,0.00016438,2]
[354204131,1740347438070,-500.0,0.00016438,2]
[354204134,1740347438080,-500.0,0.00016438,2]
[354204136,1740347438090,-383.3468877,0.00016438,2]
[354204138,1740347438100,-665.38,0.00016438,2]
[354204140,1740347438109,-500.0,0.00016438,2]
[354204142,1740347438119,-500.0,0.00016438,2]
[354204144,1740347438129,-500.0,0.00016438,2]
[354204146,1740347438138,-500.0,0.00016438,2]
[354204148,1740347438148,-500.0,0.00016438,2]
[354204150,1740347438158,-756.12,0.00016438,2]
[354204152,1740347438166,-500.0,0.00016438,2]
[354204154,1740347438176,-500.0,0.00016438,2]
[354204156,1740347438185,-500.0,0.00016438,2]
[354204158,1740347438195,-500.0,0.00016438,2]
[354204160,1740347438205,-525.22145642,0.00016438,2]
[354204162,1740347438214,-500.0,0.00016438,2]
[354204164,1740347438223,-502.37992106,0.00016438,2]
[354204166,1740347438233,-500.0,0.00016438,2]
[354204168,1740347438243,-556.13,0.00016438,2]
[354204170,1740347438252,-500.0,0.00016438,2]
[354204172,1740347438262,-500.0,0.00016438,2]
[354204174,1740347438271,-689.0,0.00016438,2]
[354204176,1740347438280,-500.0,0.00016438,2]
[354204178,1740347438290,-500.0,0.00016438,2]
[354204180,1740347438299,-500.0,0.00016438,2]
[354204182,1740347438312,-500.0,0.00016438,2]
[354204184,1740347438321,-500.0,0.00016438,2]
[354204186,1740347438330,-500.0,0.00016438,2]
[354204188,1740347438339,-500.0,0.00016438,2]
[354204190,1740347438349,-500.0,0.00016438,2]
[354204192,1740347438358,-1186.65,0.00016438,2]
[354204194,1740347438368,-935.89,0.00016438,2]
[354204196,1740347438377,-518.78,0.00016438,2]
[354204198,1740347438387,-1150.14,0.00016438,2]
[354204200,1740347438397,-882.74,0.00016438,2]
[354204202,1740347438407,-852.67,0.00016438,2]
[354204204,1740347438417,-500.0,0.00016438,2]
[354204206,1740347438426,-1161.44,0.00016438,2]
[354204208,1740347438435,-500.0,0.00016438,2]
[354204210,1740347438445,-500.0,0.00016438,2]
[354204212,1740347438454,-1104.35,0.00016438,2]
[354204214,1740347438463,-500.0,0.00016438,2]
[354204216,1740347438473,-500.0,0.00016438,2]
[354204218,1740347438482,-500.0,0.00016438,2]
[354204220,1740347438491,-500.0,0.00016438,2]
[354204222,1740347438500,-500.0,0.00016438,2]
[354204224,1740347438510,-500.0,0.00016438,2]
[354204226,1740347438519,-500.0,0.00016438,2]
[354204228,1740347438528,-674.34,0.00016438,2]
[354204230,1740347438537,-500.0,0.00016438,2]
[354204232,1740347438546,-112.07377147,0.00016438,2]
[354204235,1740347438564,-387.92622853,0.00016438,2]
[354204237,1740347438573,-500.0,0.00016438,2]
[354204239,1740347438583,-500.0,0.00016438,2]
[354204241,1740347438592,-500.9487653,0.00016438,2]
[354204243,1740347438601,-1418.97,0.00016438,2]
[354204245,1740347438611,-500.0,0.00016438,2]
[354204247,1740347438620,-1443.16,0.00016438,2]
[354204249,1740347438629,-509.76518328,0.00016438,2]
[354204251,1740347438638,-505.00469857,0.00016438,2]
[354204253,1740347438647,-500.0,0.00016438,2]
[354204255,1740347438657,-500.0,0.00016438,2]
[354204257,1740347438666,-500.0,0.00016438,2]
[354204259,1740347438675,-1148.61,0.00016438,2]
[354204261,1740347438684,-1592.05,0.00016438,2]
[354204263,1740347438693,-741.75,0.00016438,2]
[354204265,1740347438702,-500.0,0.00016438,2]
[354204267,1740347438711,-500.0,0.00016438,2]
[354204269,1740347438719,-24.21512432,0.00016438,2]
[354204271,1740347438732,-1000.37487568,0.00016438,2]
[354204273,1740347438742,-500.0,0.00016438,2]
[354204275,1740347438751,-512.97,0.00016438,2]
[354204277,1740347438760,-500.0,0.00016438,2]
[354204279,1740347438769,-500.0,0.00016438,2]
[354204281,1740347438778,-500.0,0.00016438,2]
[354204283,1740347438788,-417.67159532,0.00016438,2]
[354204286,1740347438800,-82.32840468,0.00016438,2]
[354204288,1740347438809,-500.0,0.00016438,2]
[354204290,1740347438818,-1192.49,0.00016438,2]
[354204292,1740347438827,-500.0,0.00016438,2]
[354204294,1740347438836,-500.0,0.00016438,2]
[354204296,1740347438845,-500.0,0.00016438,2]
[354204298,1740347438854,-500.0,0.00016438,2]
[354204300,1740347438863,-500.0,0.00016438,2]
[354204302,1740347438873,-500.0,0.00016438,2]
[354204304,1740347438882,-500.0,0.00016438,2]
[354204306,1740347438891,-500.0,0.00016438,2]
[354204308,1740347438900,-854.18,0.00016438,2]
[354204310,1740347438910,-500.0,0.00016438,2]
[354204312,1740347438918,-1088.76,0.00016438,2]
[354204314,1740347438928,-732.6,0.00016438,2]
[354204316,1740347438937,-659.84,0.00016438,2]
[354204318,1740347438946,-500.0,0.00016438,2]
[354204320,1740347438956,-500.0,0.00016438,2]
[354204322,1740347438965,-653.0,0.00016438,2]
[354204324,1740347438973,-500.0,0.00016438,2]
[354204326,1740347438983,-500.0,0.00016438,2]
[354204328,1740347438992,-500.0,0.00016438,2]
[354204330,1740347439012,-935.35,0.00016438,2]
[354204332,1740347439021,-500.0,0.00016438,2]
[354204334,1740347439030,-1192.3,0.00016438,2]
[354204336,1740347439039,-2418.62,0.00016438,2]
[354204338,1740347439048,-500.0,0.00016438,2]
[354204340,1740347439057,-2483.52,0.00016438,2]
[354204342,1740347439067,-175.22358302,0.00016438,2]
[354204343,1740347439079,-324.77641698,0.00016438,2]
[354204345,1740347439088,-1266.07,0.00016438,2]
[354204347,1740347439097,-1262.09,0.00016438,2]
[354204349,1740347439106,-196.94912069,0.00016438,2]
[354204351,1740347439115,-1280.42,0.00016438,2]
[354204353,1740347439124,-1069.69446233,0.00016438,2]
[354204355,1740347439135,-122.01553767,0.00016438,2]
[354204357,1740347439144,-500.0,0.00016438,2]
[354204359,1740347439153,-115.92737399,0.00016438,2]
[354204361,1740347439164,-384.07262601,0.00016438,2]
[354204363,1740347439173,-500.0,0.00016438,2]
[354204365,1740347439182,-1980.6,0.00016438,2]
[354204367,1740347439191,-500.0,0.00016438,2]
[354204369,1740347439200,-1304.61,0.00016438,2]
[354204371,1740347439209,-500.0,0.00016438,2]
[354204373,1740347439218,-1046.04,0.00016438,2]
[354204375,1740347439227,-500.0,0.00016438,2]
[354204377,1740347439236,-500.0,0.00016438,2]
[354204379,1740347439245,-1060.17,0.00016438,2]
[354204381,1740347439253,-519.78914113,0.00016438,2]
[354204383,1740347439262,-500.0,0.00016438,2]
[354204385,1740347439271,-512.20393647,0.00016438,2]
[354204386,1740347439280,-1318.77,0.00016438,2]
[354204388,1740347439289,-500.0,0.00016438,2]
[354204390,1740347439298,-1665.99,0.00016438,2]
[354204393,1740347439311,-679.96,0.00016438,2]
[354204396,1740347439320,-500.0,0.00016438,2]
[354204399,1740347439329,-1306.65,0.00016438,2]
[354204402,1740347439338,-1240.07,0.00016438,2]
[354204405,1740347439347,-1209.3,0.00016438,2]
[354204407,1740347439357,-500.0,0.00016438,2]
[354204410,1740347439366,-1348.13,0.00016438,2]
[354204412,1740347439375,-500.0,0.00016438,2]
[354204415,1740347439386,-1278.16,0.00016438,2]
[354204418,1740347439394,-500.0,0.00016438,2]
[354204421,1740347439403,-644.99,0.00016438,2]
[354204423,1740347439413,-1179.95,0.00016438,2]
[354204425,1740347439422,-500.0,0.00016438,2]
[354204427,1740347439431,-500.0,0.00016438,2]
[354204428,1740347439441,-500.0,0.00016438,2]
[354204430,1740347439450,-1921.45,0.00016438,2]
[354204432,1740347439459,-500.0,0.00016438,2]
[354204433,1740347439468,-1250.69,0.00016438,2]
[354204434,1740347439478,-500.0,0.00016438,2]
[354204435,1740347439487,-2675.55,0.00016438,2]
[354204436,1740347439496,-551.9,0.00016438,2]
[354204437,1740347439505,-469.41542728,0.00016438,2]
[354204439,1740347439515,-500.0,0.00016438,2]
[354204440,1740347439524,-1419.37,0.00016438,2]
[354204441,1740347439534,-500.0,0.00016438,2]
[354204442,1740347439544,-500.0,0.00016438,2]
[354204445,1740347439553,-500.0,0.00016438,2]
[354204447,1740347439562,-1897.13,0.00016438,2]
[354204449,1740347439571,-500.0,0.00016438,2]
[354204450,1740347439580,-611.83,0.00016438,2]
[354204452,1740347439589,-885.82,0.00016438,2]
[354204454,1740347439598,-500.0,0.00016438,2]
[354204456,1740347439607,-1759.92,0.00016438,2]
[354204458,1740347439616,-500.0,0.00016438,2]
[354204460,1740347439625,-500.0,0.00016438,2]
[354204462,1740347439634,-1314.27,0.00016438,2]
[354204464,1740347439644,-1121.19,0.00016438,2]
[354204466,1740347439653,-1278.39,0.00016438,2]
[354204468,1740347439662,-500.0,0.00016438,2]
[354204470,1740347439671,-611.72,0.00016438,2]
[354204472,1740347439680,-580.2,0.00016438,2]
[354204474,1740347439690,-500.0,0.00016438,2]
[354204476,1740347439700,-1315.22,0.00016438,2]
[354204478,1740347439713,-779.32,0.00016438,2]
[354204480,1740347439722,-500.0,0.00016438,2]
[354204482,1740347439731,-1432.94,0.00016438,2]
[354204484,1740347439740,-1936.72,0.00016438,2]
[354204486,1740347439750,-500.0,0.00016438,2]
[354204488,1740347439759,-500.0,0.00016438,2]
[354204490,1740347439768,-1025.61,0.00016438,2]
[354204492,1740347439777,-502.87109302,0.00016438,2]
[354204494,1740347439786,-500.0,0.00016438,2]
[354204496,1740347439795,-1040.98,0.00016438,2]
[354204499,1740347439804,-503.46935905,0.00016438,2]
[354204500,1740347439814,-500.0,0.00016438,2]
[354204502,1740347439823,-500.0,0.00016438,2]
[354204505,1740347439832,-929.26,0.00016438,2]
[354204507,1740347439841,-1151.71,0.00016438,2]
[354204509,1740347439851,-500.0,0.00016438,2]
[354204511,1740347439860,-500.0,0.00016438,2]
[354204512,1740347439869,-500.0,0.00016438,2]
[354204515,1740347439880,-500.0,0.00016438,2]
[354204517,1740347439889,-500.0,0.00016438,2]
[354204519,1740347439899,-1270.37,0.00016438,2]
[354204521,1740347439907,-500.0,0.00016438,2]
[354204522,1740347439917,-500.81906217,0.00016438,2]
[354204524,1740347439926,-501.25629161,0.00016438,2]
[354204526,1740347439935,-500.0,0.00016438,2]
[354204529,1740347439944,-1424.52,0.00016438,2]
[354204530,1740347439953,-500.0,0.00016438,2]
[354204532,1740347439963,-501.69376639,0.00016438,2]
[354204534,1740347439972,-500.0,0.00016438,2]
[354204536,1740347439981,-500.0,0.00016438,2]
[354204538,1740347439991,-500.0,0.00016438,2]
[354204541,1740347440000,-915.21,0.00016438,2]
[354204543,1740347440009,-1105.89,0.00016438,2]
[354204544,1740347440018,-603.72,0.00016438,2]
[354204546,1740347440027,-1031.49,0.00016438,2]
[354204548,1740347440035,-894.79,0.00016438,2]
[354204550,1740347440044,-500.0,0.00016438,2]
[354204552,1740347440053,-2151.71,0.00016438,2]
[354204554,1740347440062,-500.0,0.00016438,2]
[354204556,1740347440071,-1319.38,0.00016438,2]
[354204558,1740347440080,-500.0,0.00016438,2]
[354204560,1740347440088,-500.0,0.00016438,2]
[354204590,1740347440348,-701.18,0.00016438,2]
[354204592,1740347440358,-1071.39,0.00016438,2]
[354204594,1740347440366,-500.0,0.00016438,2]
[354204596,1740347440376,-1446.52,0.00016438,2]
[354204598,1740347440385,-1605.38,0.00016438,2]
[354204600,1740347440395,-652.77,0.00016438,2]
[354204602,1740347440403,-523.02,0.00016438,2]
[354204604,1740347440412,-897.04,0.00016438,2]
[354204606,1740347440422,-1252.15,0.00016438,2]
[354204608,1740347440430,-1160.26,0.00016438,2]
[354204610,1740347440439,-2571.84,0.00016438,2]
[354204612,1740347440448,-500.0,0.00016438,2]
[354204614,1740347440456,-1587.03,0.00016438,2]
[354204616,1740347440465,-500.0,0.00016438,2]
[354204618,1740347440474,-1730.52,0.00016438,2]
[354204620,1740347440483,-839.88,0.00016438,2]
[354204622,1740347440492,-776.23,0.00016438,2]
[354204624,1740347440501,-1493.75,0.00016438,2]
[354204626,1740347440509,-1132.73,0.00016438,2]
[354204628,1740347440519,-1187.57,0.00016438,2]
[354204630,1740347440527,-500.0,0.00016438,2]
[354204632,1740347440536,-500.0,0.00016438,2]
[354204634,1740347440545,-937.4,0.00016438,2]
[354204636,1740347440554,-1383.16,0.00016438,2]
[354204638,1740347440563,-1128.39,0.00016438,2]
[354204640,1740347440571,-500.0,0.00016438,2]
[354204642,1740347440580,-735.77,0.00016438,2]
[354204644,1740347440589,-1304.86,0.00016438,2]
[354204646,1740347440598,-500.0,0.00016438,2]
[354204648,1740347440606,-506.45480225,0.00016438,2]
[354204650,1740347440616,-1023.58,0.00016438,2]
[354204652,1740347440625,-590.98,0.00016438,2]
[354204654,1740347440634,-2331.89,0.00016438,2]
[354204656,1740347440643,-500.0,0.00016438,2]
[354204658,1740347440651,-499.997,0.00016438,2]
[354204660,1740347440660,-500.0,0.00016438,2]
[354204662,1740347440668,-1675.65,0.00016438,2]
[354204664,1740347440678,-500.0,0.00016438,2]
[354204665,1740347440687,-1138.1,0.00016438,2]
[354204667,1740347440696,-502.93071308,0.00016438,2]
[354204669,1740347440705,-500.0,0.00016438,2]
[354204671,1740347440714,-1224.12,0.00016438,2]
[354204673,1740347440723,-1528.69,0.00016438,2]
[354204675,1740347440732,-7111.47,0.00016438,2]
[354204677,1740347440741,-2610.37,0.00016438,2]
[354204679,1740347440751,-649.06,0.00016438,2]
[354204681,1740347440760,-1926.75,0.00016438,2]
[354204683,1740347440768,-671.84,0.00016438,2]
[354204685,1740347440777,-500.0,0.00016438,2]
[354204687,1740347440786,-500.0,0.00016438,2]
[354204689,1740347440795,-1429.82,0.00016438,2]
[354204691,1740347440804,-1325.66,0.00016438,2]
[354204693,1740347440814,-523.87,0.00016438,2]
[354204695,1740347440823,-1351.52826724,0.00016438,2]
[354204697,1740347440842,-94.32173276,0.00016438,2]
[354204699,1740347440851,-500.0,0.00016438,2]
[354204701,1740347440861,-549.08,0.00016438,2]
[354204703,1740347440870,-500.0,0.00016438,2]
[354204705,1740347440879,-1270.29,0.00016438,2]
[354204707,1740347440888,-956.54,0.00016438,2]
[354204709,1740347440897,-1000.36,0.00016438,2]
[354204711,1740347440907,-581.83,0.00016438,2]
[354204713,1740347440916,-500.0,0.00016438,2]
[354204715,1740347440925,-1130.82,0.00016438,2]
[354204717,1740347440934,-500.0,0.00016438,2]
[354204719,1740347440943,-500.0,0.00016438,2]
[354204721,1740347440953,-500.0,0.00016438,2]
[354204723,1740347440963,-1270.32,0.00016438,2]
[354204725,1740347440972,-791.67,0.00016438,2]
[354204727,1740347440981,-547.75,0.00016438,2]
[354204729,1740347440990,-585.12,0.00016438,2]
[354204731,1740347441000,-1004.92,0.00016438,2]
[354204733,1740347441009,-1311.36,0.00016438,2]
[354204735,1740347441018,-819.84,0.00016438,2]
[354204737,1740347441028,-2846.06,0.00016438,2]
[354204739,1740347441037,-500.0,0.00016438,2]
[354204741,1740347441046,-1304.2,0.00016438,2]
[354204743,1740347441055,-730.48,0.00016438,2]
[354204745,1740347441065,-1576.97,0.00016438,2]
[354204747,1740347441073,-1982.8,0.00016438,2]
[354204749,1740347441082,-1993.93,0.00016438,2]
[354204751,1740347441091,-500.0,0.00016438,2]
[354204753,1740347441101,-500.0,0.00016438,2]
[354204755,1740347441109,-500.0,0.00016438,2]
[354204757,1740347441118,-1753.08,0.00016438,2]
[354204759,1740347441127,-500.0,0.00016438,2]
[354204761,1740347441136,-605.12,0.00016438,2]
[354204763,1740347441145,-500.0,0.00016438,2]
[354204765,1740347441154,-1389.68,0.00016438,2]
[354204767,1740347441163,-3031.56,0.00016438,2]
[354204769,1740347441172,-1084.74,0.00016438,2]
[354204770,1740347441181,-500.0,0.00016438,2]
[354204772,1740347441190,-579.06351695,0.00016438,2]
[354204774,1740347441199,-869.61,0.00016438,2]
[354204776,1740347441209,-500.0,0.00016438,2]
[354204778,1740347441219,-500.0,0.00016438,2]
[354204781,1740347441228,-183.74501943,0.00016438,2]
[354204783,1740347441239,-673.13,0.00016438,2]
[354204784,1740347441248,-2398.71,0.00016438,2]
[354204786,1740347441259,-169.4035171,0.00016438,2]
[354204788,1740347441269,-586.99,0.00016438,2]
[354204790,1740347441278,-501.95689106,0.00016438,2]
[354204792,1740347441287,-1367.37,0.00016438,2]
[354204794,1740347441297,-2553.59,0.00016438,2]
[354204796,1740347441310,-500.0,0.00016438,2]
[354204798,1740347441319,-500.0,0.00016438,2]
[354204800,1740347441327,-548.0,0.00016438,2]
[354204801,1740347441337,-500.0,0.00016438,2]
[354204802,1740347441347,-576.33,0.00016438,2]
[354204803,1740347441355,-1343.35,0.00016438,2]
[354204804,1740347441364,-1218.59,0.00016438,2]
[354204805,1740347441373,-782.0,0.00016438,2]
[354204806,1740347441382,-2061.4,0.00016438,2]
[354204807,1740347441391,-1908.95,0.00016438,2]
[354204808,1740347441401,-500.0,0.00016438,2]
[354204809,1740347441410,-500.0,0.00016438,2]
[354204810,1740347441419,-1201.38,0.00016438,2]
[354204812,1740347441428,-500.0,0.00016438,2]
[354204814,1740347441437,-1621.89,0.00016438,2]
[354204816,1740347441446,-500.0,0.00016438,2]
[354204818,1740347441455,-500.0,0.00016438,2]
[354204820,1740347441466,-500.0,0.00016438,2]
[354204822,1740347441475,-1403.68,0.00016438,2]
[354204823,1740347441483,-500.0,0.00016438,2]
[354204825,1740347441492,-1309.97,0.00016438,2]
[354204827,1740347441501,-597.08,0.00016438,2]
[354204829,1740347441510,-994.33,0.00016438,2]
[354204831,1740347441520,-500.0,0.00016438,2]
[354204833,1740347441529,-500.0,0.00016438,2]
[354204835,1740347441538,-579.55,0.00016438,2]
[354204837,1740347441547,-727.54,0.00016438,2]
[354204839,1740347441556,-500.0,0.00016438,2]
[354204841,1740347441565,-868.41,0.00016438,2]
[354204843,1740347441574,-1840.87,0.00016438,2]
[354204845,1740347441583,-500.0,0.00016438,2]
[354204847,1740347441592,-952.46,0.00016438,2]
[354204849,1740347441601,-500.0,0.00016438,2]
[354204850,1740347441611,-500.0,0.00016438,2]
[354204851,1740347441619,-500.0,0.00016438,2]
[354204852,1740347441628,-2559.75,0.00016438,2]
[354204853,1740347441636,-500.0,0.00016438,2]
[354204854,1740347441646,-564.42,0.00016438,2]
[354204855,1740347441654,-500.0,0.00016438,2]
[354204856,1740347441663,-500.0,0.00016438,2]
[354204857,1740347441671,-1709.67,0.00016438,2]
[354204858,1740347441680,-1913.2,0.00016438,2]
[354204860,1740347441689,-737.03,0.00016438,2]
[354204862,1740347441698,-500.0,0.00016438,2]
[354204864,1740347441707,-500.0,0.00016438,2]
[354204866,1740347441716,-1824.7,0.00016438,2]
[354204868,1740347441725,-931.18,0.00016438,2]
[354204870,1740347441734,-1239.75,0.00016438,2]
[354204872,1740347441743,-500.0,0.00016438,2]
[354204874,1740347441752,-500.0,0.00016438,2]
[354204876,1740347441761,-1897.34,0.00016438,2]
[354204878,1740347441770,-1219.58,0.00016438,2]
[354204880,1740347441779,-500.0,0.00016438,2]
[354204882,1740347441788,-691.25,0.00016438,2]
[354204884,1740347441797,-616.32,0.00016438,2]
[354204886,1740347441806,-2057.3,0.00016438,2]
[354204888,1740347441815,-281.30543203,0.00016438,2]
[354204890,1740347441824,-1279.11,0.00016438,2]
[354204892,1740347441833,-500.0,0.00016438,2]
[354204894,1740347441843,-500.0,0.00016438,2]
[354204896,1740347441851,-773.32,0.00016438,2]
[354204898,1740347441861,-1293.45,0.00016438,2]
[354204900,1740347441870,-1190.54,0.00016438,2]
[354204902,1740347441878,-500.0,0.00016438,2]
[354204904,1740347441887,-993.98,0.00016438,2]
[354204906,1740347441896,-579.48,0.00016438,2]
[354204908,1740347441906,-1423.4,0.00016438,2]
[354204910,1740347441915,-500.0,0.00016438,2]
[354204912,1740347441924,-500.0,0.00016438,2]
[354204914,1740347441932,-1905.18,0.00016438,2]
[354204916,1740347441942,-503.04734901,0.00016438,2]
[354204918,1740347441951,-1555.44,0.00016438,2]
[354204920,1740347441960,-503.20894019,0.00016438,2]
[354204922,1740347441969,-1524.85,0.00016438,2]
[354204924,1740347441978,-1430.13,0.00016438,2]
[354204926,1740347441987,-500.0,0.00016438,2]
[354204928,1740347441996,-500.0,0.00016438,2]
[354204930,1740347442005,-500.0,0.00016438,2]
[354204932,1740347442014,-1396.43,0.00016438,2]
[354204934,1740347442024,-556.76,0.00016438,2]
[354204936,1740347442033,-539.82,0.00016438,2]
[354204938,1740347442042,-500.0,0.00016438,2]
[354204940,1740347442051,-500.0,0.00016438,2]
[354204942,1740347442060,-1978.08,0.00016438,2]
[354204944,1740347442070,-500.0,0.00016438,2]
[354204946,1740347442079,-493.98273094,0.00016438,2]
[354204948,1740347442088,-500.0,0.00016438,2]
[354204950,1740347442097,-2015.6,0.00016438,2]
[354204952,1740347442106,-734.67,0.00016438,2]
[354204954,1740347442115,-775.28,0.00016438,2]
[354204956,1740347442124,-1041.98,0.00016438,2]
[354204958,1740347442133,-500.0,0.00016438,2]
[354204960,1740347442142,-522.88071928,0.00016438,2]
[354204962,1740347442151,-500.0,0.00016438,2]
[354204964,1740347442160,-729.64,0.00016438,2]
[354204966,1740347442169,-1379.3,0.00016438,2]
[354204968,1740347442178,-500.0,0.00016438,2]
[354204970,1740347442187,-500.0,0.00016438,2]
[354204972,1740347442196,-1386.47,0.00016438,2]
[354204974,1740347442205,-500.0,0.00016438,2]
[354204976,1740347442214,-977.76,0.00016438,2]
[354204978,1740347442223,-500.0,0.00016438,2]
[354204980,1740347442232,-500.0,0.00016438,2]
[354204982,1740347442241,-1473.18,0.00016438,2]
[354204984,1740347442250,-832.83,0.00016438,2]
[354204986,1740347442259,-519.8,0.00016438,2]
[354204988,1740347442268,-246.56391154,0.00016438,2]
[354204990,1740347442277,-500.0,0.00016438,2]
[354204992,1740347442286,-7141.13,0.00016438,2]
[354204994,1740347442295,-505.86641007,0.00016438,2]
[354204995,1740347442309,-875.93,0.00016438,2]
[354204997,1740347442319,-1644.82,0.00016438,2]